[Event "1st Easter Festival-A 2021"]
[Site "Bassano del Grappa"]
[Date "2021.04.03"]
[Round "6.9"]
[White "Diermair, Andreas"]
[Black "Carlo, Emanuele"]
[Result "1-0"]
[ECO "E04"]
[WhiteElo "2487"]
[BlackElo "2282"]
[Annotator "ChessBase"]
[PlyCount "151"]
[EventDate "2021.04.01"]
[EventType "swiss"]
[EventCountry "ITA"]
[SourceTitle "playchess.com"]
[Source "ChessBase"]
[SourceQuality "1"]
[TimeControl "5400+30"]

1. d4 {[%emt 0:00:00]} Nf6 {[%emt 0:00:00]} 2. c4 {[%emt 0:00:00]} e6 {[%emt 0:00:00]} 3. g3 {[%emt 0:00:00]} d5 {[%emt 0:00:00]} 4. Nf3 {[%emt 0:00:00]} dxc4 {[%emt 0:00:18]} 5. Bg2 {[%emt 0:00:00]} a6 {[%emt 0:00:06]} 6. O-O {[%emt 0:00:22]} Nc6 {[%emt 0:00:46]} 7. e3 {[%emt 0:00:14]} Rb8 {[%emt 0:00:23]} 8. Qe2 {[%emt 0:00:30]} b5 {[%emt 0:01:41]} 9. Bd2 {[%emt 0:00:11]} Bb7 {[%emt 0:02:38]} 10. b3 {[%emt 0:00:37]} cxb3 {[%emt 0:00:14]} 11. axb3 {[%emt 0:00:02]} Be7 {[%emt 0:03:36]} 12. Rc1 {[%emt 0:00:38]} O-O {[%emt 0:03:49]} 13. Ne1 {[%emt 0:05:27]} Nb4 {[%emt 0:08:05]} 14. Bxb7 {[%emt 0:03:23]} Rxb7 {[%emt 0:00:05]} 15. Bxb4 {[%emt 0:00:25]} Bxb4 {[%emt 0:00:07]} 16. Rxa6 {[%emt 0:00:29]} Qd5 {[%emt 0:06:28]} 17. Qc2 {[%emt 0:05:19]} h5 {[%emt 0:10:46]} 18. Nd3 {[%emt 0:02:25]} Bd6 {[%emt 0:00:47]} 19. Nd2 {[%emt 0:11:42]} h4 {[%emt 0:03:43]} 20. Qc6 {[%emt 0:04:07]} hxg3 {[%emt 0:00:12]} 21. hxg3 {[%emt 0:00:12]} Rbb8 {[%emt 0:02:30]} 22. Qxd5 {[%emt 0:04:08]} exd5 {[%emt 0:00:39]} 23. Nf3 {[%emt 0:06:19]} Ra8 {[%emt 0:01:51]} 24. Rca1 {[%emt 0:00:32]} Rxa6 {[%emt 0:00:02]} 25. Rxa6 {[%emt 0:00:02]} Nd7 {[%emt 0:12:13]} 26. Nfe1 {[%emt 0:11:15]} Nb8 {[%emt 0:10:07]} 27. Ra5 {[%emt 0:00:45]} c6 {[%emt 0:00:26]} 28. Nc2 {[%emt 0:01:53]} Rc8 {[%emt 0:01:46]} 29. Ra8 {[%emt 0:11:23]} Kf8 {[%emt 0:02:21]} 30. Ncb4 {[%emt 0:03:30]} Ke8 {[%emt 0:03:21]} 31. Nc5 {[%emt 0:05:04]} Bxc5 {[%emt 0:04:33]} 32. dxc5 {[%emt 0:00:03]} Rd8 {[%emt 0:00:33]} 33. Nd3 {[%emt 0:05:42]} Nd7 {[%emt 0:01:28]} 34. Ra6 {[%emt 0:00:06]} Rc8 {[%emt 0:00:44]} 35. Ra7 {[%emt 0:01:50]} f6 {[%emt 0:01:12]} 36. b4 {[%emt 0:00:43]} g5 {[%emt 0:03:01]} 37. f4 {[%emt 0:00:20]} Kd8 {[%emt 0:01:03]} 38. Kg2 {[%emt 0:01:31]} g4 {[%emt 0:01:38]} 39. Nc1 {[%emt 0:01:56]} Rc7 {[%emt 0:01:41]} 40. Ra8+ {[%emt 0:00:05]} Rc8 {[%emt 0:00:25]} 41. Ra6 {[%emt 0:00:17]} Nf8 {[%emt 0:01:14]} 42. Nb3 {[%emt 0:02:13]} Ng6 {[%emt 0:00:40]} 43. Nd4 {[%emt 0:01:21]} Ne7 {[%emt 0:00:06]} 44. f5 {[%emt 0:04:01]} Kd7 {[%emt 0:02:05]} 45. Kf2 {[%emt 0:00:22]} Ng8 {[%emt 0:03:08]} 46. Ne6 {[%emt 0:01:50]} Nh6 {[%emt 0:01:15]} 47. Ra7+ {[%emt 0:00:05]} Ke8 {[%emt 0:00:07]} 48. Ng7+ {[%emt 0:00:58]} Kf8 {[%emt 0:00:27]} 49. e4 {[%emt 0:00:37]} dxe4 {[%emt 0:00:46]} 50. Ke3 {[%emt 0:00:20]} Kg8 {[%emt 0:01:04]} 51. Kxe4 {[%emt 0:01:27]} Rd8 {[%emt 0:00:15]} 52. Nh5 {[%emt 0:01:19]} Rd1 {[%emt 0:00:45]} 53. Nxf6+ {[%emt 0:00:10]} Kf8 {[%emt 0:00:02]} 54. Ke5 {[%emt 0:06:28]} Nf7+ {[%emt 0:01:32]} 55. Kf4 {[%emt 0:00:06]} Rd4+ {[%emt 0:01:10]} 56. Ne4 {[%emt 0:00:09]} Rxb4 {[%emt 0:00:20]} 57. f6 {[%emt 0:00:11]} Kg8 {[%emt 0:02:39]} 58. Kf5 {[%emt 0:00:59]} Rd4 {[%emt 0:00:14]} 59. Rc7 {[%emt 0:01:37]} Rd5+ {[%emt 0:02:03]} 60. Kxg4 {[%emt 0:00:41]} Ne5+ {[%emt 0:00:11]} 61. Kf5 {[%emt 0:01:09]} Nd3+ {[%emt 0:00:20]} 62. Kg4 {[%emt 0:00:33]} Nxc5 {[%emt 0:00:25]} 63. Rg7+ {[%emt 0:00:15]} Kf8 {[%emt 0:00:46]} 64. Ng5 {[%emt 0:00:13]} Rxg5+ {[%emt 0:03:13]} 65. Rxg5 {[%emt 0:00:04]} Ne6 {[%emt 0:00:14]} 66. Rh5 {[%emt 0:00:33]} Kf7 {[%emt 0:00:12]} 67. Kf5 {[%emt 0:00:36]} Nd4+ {[%emt 0:00:34]} 68. Ke5 {[%emt 0:00:10]} Nf3+ {[%emt 0:00:07]} 69. Ke4 {[%emt 0:00:25]} Ne1 {[%emt 0:01:03]} 70. Kf5 {[%emt 0:00:10]} Nd3 {[%emt 0:00:04]} 71. Rh7+ {[%emt 0:00:08]} Kf8 {[%emt 0:00:05]} 72. g4 {[%emt 0:00:54]} b4 {[%emt 0:00:09]} 73. Rb7 {[%emt 0:00:25]} c5 {[%emt 0:00:14]} 74. g5 {[%emt 0:00:07]} c4 {[%emt 0:00:04]} 75. g6 {[%emt 0:00:07]} c3 {[%emt 0:00:05]} 76. Rb8# {[%emt 0:00:03]} 1-0

[Event "1st Easter Festival-A 2021"]
[Site "Bassano del Grappa"]
[Date "2021.04.03"]
[Round "6.10"]
[White "Tisaj, Domen"]
[Black "Schreiner, Peter"]
[Result "0-1"]
[ECO "B51"]
[WhiteElo "2287"]
[BlackElo "2458"]
[Annotator "ChessBase"]
[PlyCount "114"]
[EventDate "2021.04.01"]
[EventType "swiss"]
[EventCountry "ITA"]
[SourceTitle "playchess.com"]
[Source "ChessBase"]
[SourceQuality "1"]
[TimeControl "5400+30"]

1. e4 {[%emt 0:00:00]} c5 {[%emt 0:02:33]} 2. Nf3 {[%emt 0:00:00]} d6 {[%emt 0:00:07]} 3. Bb5+ {[%emt 0:00:10]} Nd7 {[%emt 0:06:22]} 4. d4 {[%emt 0:00:10]} cxd4 {[%emt 0:02:25]} 5. Qxd4 {[%emt 0:00:02]} a6 {[%emt 0:05:09]} 6. Be2 {[%emt 0:00:10]} Ngf6 {[%emt 0:02:08]} 7. O-O {[%emt 0:00:56]} g6 {[%emt 0:11:26]} 8. Bg5 {[%emt 0:08:06]} Bg7 {[%emt 0:00:42]} 9. Nc3 {[%emt 0:05:04]} O-O {[%emt 0:00:47]} 10. Rfd1 {[%emt 0:04:13]} Qc7 {[%emt 0:08:31]} 11. e5 {[%emt 0:08:14]} Nxe5 {[%emt 0:09:23]} 12. Bxf6 {[%emt 0:06:16]} Bxf6 {[%emt 0:00:10]} 13. Nd5 {[%emt 0:00:26]} Qxc2 {[%emt 0:01:44]} 14. Nxf6+ {[%emt 0:00:15]} exf6 {[%emt 0:00:06]} 15. Rd2 {[%emt 0:01:12]} Qc5 {[%emt 0:01:58]} 16. Qf4 {[%emt 0:01:37]} Kg7 {[%emt 0:15:37]} 17. Rad1 {[%emt 0:01:45]} Rd8 {[%emt 0:03:05]} 18. Nd4 {[%emt 0:14:03]} d5 {[%emt 0:02:42]} 19. h4 {[%emt 0:00:50]} Qd6 {[%emt 0:01:30]} 20. Nc2 {[%emt 0:07:10]} Be6 {[%emt 0:05:54]} 21. h5 {[%emt 0:07:10]} Ng4 {[%emt 0:00:44]} 22. Qxd6 {[%emt 0:00:51]} Rxd6 {[%emt 0:00:06]} 23. Bxg4 {[%emt 0:00:06]} Bxg4 {[%emt 0:00:07]} 24. f3 {[%emt 0:00:04]} Be6 {[%emt 0:01:29]} 25. Nd4 {[%emt 0:00:16]} Rc8 {[%emt 0:02:24]} 26. Kf2 {[%emt 0:00:06]} g5 {[%emt 0:08:14]} 27. g4 {[%emt 0:01:29]} h6 {[%emt 0:01:09]} 28. Re1 {[%emt 0:00:35]} Rc4 {[%emt 0:03:54]} 29. b3 {[%emt 0:00:47]} Rc3 {[%emt 0:00:16]} 30. Ne2 {[%emt 0:00:21]} Rc8 {[%emt 0:00:50]} 31. Nd4 {[%emt 0:00:04]} Kf8 {[%emt 0:00:45]} 32. Rde2 {[%emt 0:00:56]} Bd7 {[%emt 0:00:55]} 33. Re3 {[%emt 0:00:18]} a5 {[%emt 0:01:07]} 34. Kg3 {[%emt 0:00:40]} b5 {[%emt 0:01:03]} 35. Kf2 {[%emt 0:02:52]} f5 {[%emt 0:00:11]} 36. gxf5 {[%emt 0:00:33]} Kg7 {[%emt 0:00:14]} 37. Kg3 {[%emt 0:01:02]} Kf6 {[%emt 0:00:08]} 38. Kg4 {[%emt 0:00:02]} b4 {[%emt 0:00:50]} 39. Re5 {[%emt 0:04:39]} Rc3 {[%emt 0:00:25]} 40. R5e3 {[%emt 0:00:08]} Rc8 {[%emt 0:00:34]} 41. Re5 {[%emt 0:00:10]} a4 {[%emt 0:00:05]} 42. R5e3 {[%emt 0:00:20]} axb3 {[%emt 0:00:22]} 43. axb3 {[%emt 0:00:02]} Rc3 {[%emt 0:00:19]} 44. f4 {[%emt 0:01:04]} gxf4 {[%emt 0:01:44]} 45. Kxf4 {[%emt 0:00:02]} Rc8 {[%emt 0:00:37]} 46. Rg3 {[%emt 0:02:40]} Ra6 {[%emt 0:00:42]} 47. Re5 {[%emt 0:00:51]} Rc5 {[%emt 0:00:51]} 48. Rd3 {[%emt 0:00:54]} Ra1 {[%emt 0:00:37]} 49. Nf3 {[%emt 0:00:23]} Rf1 {[%emt 0:00:21]} 50. Ree3 {[%emt 0:11:00]} Bxf5 {[%emt 0:00:35]} 51. Rd4 {[%emt 0:00:05]} Be4 {[%emt 0:00:45]} 52. Rxb4 {[%emt 0:00:16]} Rc6 {[%emt 0:00:38]} 53. Kg3 {[%emt 0:00:50]} Rxf3+ {[%emt 0:00:12]} 54. Rxf3+ {[%emt 0:00:05]} Bxf3 {[%emt 0:00:02]} 55. Kxf3 {[%emt 0:00:06]} Ke5 {[%emt 0:00:18]} 56. Rb8 {[%emt 0:00:06]} Rc3+ {[%emt 0:00:44]} 57. Ke2 {[%emt 0:00:01]} Rh3 {[%emt 0:00:51]} 0-1

[Event "1st Easter Festival-A 2021"]
[Site "Bassano del Grappa"]
[Date "2021.04.04"]
[Round "8.10"]
[White "Diermair, Andreas"]
[Black "Lumachi, Gabriele"]
[Result "1/2-1/2"]
[ECO "E06"]
[WhiteElo "2487"]
[BlackElo "2316"]
[Annotator "RC"]
[PlyCount "52"]
[EventDate "2021.04.01"]
[EventType "swiss"]
[EventCountry "ITA"]
[SourceTitle "playchess.com"]
[Source "ChessBase"]
[SourceQuality "1"]
[TimeControl "5400+30"]

1. c4 {[%emt 0:00:00]} e6 {[%emt 1:30:30]} 2. g3 {[%emt 0:00:00]} d5 {[%emt 0:00:00]} 3. Bg2 {[%emt 0:00:02]} Nf6 {[%emt 0:00:00]} 4. Nf3 {[%emt 0:00:14]} c5 {[%emt 0:00:00]} 5. O-O {[%emt 0:00:39]} Be7 {[%emt 0:00:00]} 6. d4 {[%emt 0:00:43]} Nc6 {[%emt 0:00:00]} 7. dxc5 {[%emt 0:01:35]} O-O {[%emt 0:00:00]} 8. cxd5 {[%emt 0:02:25]} Nxd5 {[%emt 0:00:00]} 9. a3 {[%emt 0:07:48]} Bxc5 {[%emt 0:00:00]} 10. b4 {[%emt 0:03:34]} Be7 {[%emt 0:00:00]} 11. Bb2 {[%emt 0:00:07]} Bf6 {[%emt 0:00:00]} 12. Qb3 {[%emt 0:00:45]} Bd7 {[%emt 0:00:00]} 13. Nbd2 {[%emt 0:08:35]} a5 {[%emt 0:00:00]} 14. e4 {[%emt 0:03:58]} Nb6 {[%emt 0:00:00]} 15. Bxf6 {[%emt 0:00:37]} gxf6 {[%emt 0:00:00]} 16. bxa5 {[%emt 0:10:26]} Nxa5 {[%emt 0:00:00]} 17. Qe3 {[%emt 0:00:23]} Nbc4 {[%emt 0:00:00]} 18. Nxc4 {[%emt 0:06:10]} Nxc4 {[%emt 0:00:00]} 19. Qh6 {[%emt 0:00:10]} Bc6 {[%emt 0:00:00]} 20. e5 {[%emt 0:08:13]} Nxe5 {[%emt 0:00:00]} 21. Nxe5 {[%emt 0:00:11]} fxe5 {[%emt 0:00:00]} 22. Bxc6 {[%emt 0:00:42]} bxc6 {[%emt 0:00:00]} 23. Rad1 {[%emt 0:00:34]} Qe7 {[%emt 0:00:00]} 24. Rd7 {[%emt 0:00:14]} Qxd7 {[%emt 0:00:00]} 25. Qg5+ {[%emt 0:00:03]} Kh8 {[%emt 0:00:00]} 26. Qf6+ {[%emt 0:00:02]} Kg8 {[%emt 0:00:00]} 1/2-1/2

[Event "1st Easter Festival-A 2021"]
[Site "Bassano del Grappa"]
[Date "2021.04.05"]
[Round "9.6"]
[White "Sonis, Francesco"]
[Black "Brinovec, David"]
[Result "1-0"]
[ECO "E07"]
[WhiteElo "2477"]
[BlackElo "2262"]
[Annotator "ChessBase"]
[PlyCount "81"]
[EventDate "2021.04.01"]
[EventType "swiss"]
[EventCountry "ITA"]
[SourceTitle "playchess.com"]
[Source "ChessBase"]
[SourceQuality "1"]
[TimeControl "5400+30"]

1. Nf3 {[%emt 0:00:43]} d5 {[%emt 0:00:00]} 2. g3 {[%emt 0:00:05]} Nf6 {[%emt 0:00:00]} 3. Bg2 {[%emt 0:00:13]} Nbd7 {[%emt 0:00:15]} 4. d4 {[%emt 0:00:05]} e6 {[%emt 0:00:04]} 5. O-O {[%emt 0:00:04]} Be7 {[%emt 0:00:03]} 6. c4 {[%emt 0:00:03]} O-O {[%emt 0:00:22]} 7. Qd3 {[%emt 0:00:51]} b6 {[%emt 0:00:37]} 8. cxd5 {[%emt 0:00:11]} exd5 {[%emt 0:00:06]} 9. Nc3 {[%emt 0:00:15]} Bb7 {[%emt 0:00:27]} 10. Ne5 {[%emt 0:00:14]} c5 {[%emt 0:03:06]} 11. Bf4 {[%emt 0:00:33]} Qc8 {[%emt 0:17:43]} 12. Rac1 {[%emt 0:08:41]} Rd8 {[%emt 0:00:50]} 13. Rfd1 {[%emt 0:02:44]} Nf8 {[%emt 0:01:25]} 14. Qb1 {[%emt 0:05:24]} a6 {[%emt 0:08:03]} 15. dxc5 {[%emt 0:14:33]} bxc5 {[%emt 0:00:13]} 16. Na4 {[%emt 0:00:03]} Qe6 {[%emt 0:01:16]} 17. Nd3 {[%emt 0:01:16]} N8d7 {[%emt 0:04:51]} 18. Naxc5 {[%emt 0:12:50]} Nxc5 {[%emt 0:00:10]} 19. Nxc5 {[%emt 0:00:03]} Bxc5 {[%emt 0:00:06]} 20. Rxc5 {[%emt 0:00:03]} Qxe2 {[%emt 0:01:07]} 21. Rc7 {[%emt 0:00:10]} Qb5 {[%emt 0:00:31]} 22. b4 {[%emt 0:09:36]} Rd7 {[%emt 0:01:38]} 23. Rc5 {[%emt 0:06:48]} Qb6 {[%emt 0:01:11]} 24. Be3 {[%emt 0:01:26]} Qe6 {[%emt 0:02:27]} 25. Bd4 {[%emt 0:00:36]} Ne4 {[%emt 0:14:48]} 26. Rc2 {[%emt 0:00:02]} Nd6 {[%emt 0:01:42]} 27. a4 {[%emt 0:04:23]} Nc4 {[%emt 0:07:09]} 28. Qa1 {[%emt 0:00:15]} Qg6 {[%emt 0:03:40]} 29. Re2 {[%emt 0:00:07]} h5 {[%emt 0:01:50]} 30. h4 {[%emt 0:02:25]} Bc6 {[%emt 0:00:43]} 31. Rde1 {[%emt 0:00:49]} Nd6 {[%emt 0:01:17]} 32. Re5 {[%emt 0:00:51]} f6 {[%emt 0:01:59]} 33. Re6 {[%emt 0:01:18]} Bb7 {[%emt 0:01:35]} 34. Bh3 {[%emt 0:00:46]} Qf7 {[%emt 0:07:57]} 35. Rxf6 {[%emt 0:02:56]} gxf6 {[%emt 0:00:05]} 36. Be6 {[%emt 0:00:04]} Ne4 {[%emt 0:00:06]} 37. Bxf7+ {[%emt 0:00:04]} Kxf7 {[%emt 0:00:05]} 38. Qd1 {[%emt 0:00:03]} Kg6 {[%emt 0:00:23]} 39. f3 {[%emt 0:00:25]} Nxg3 {[%emt 0:01:01]} 40. Kf2 {[%emt 0:00:04]} Nf5 {[%emt 0:00:12]} 41. Qd3 {[%emt 0:00:03]} 1-0

[Event "1st Easter Festival-A 2021"]
[Site "Bassano del Grappa"]
[Date "2021.04.05"]
[Round "9.6"]
[White "Schreiner, Peter"]
[Black "Palozza, Christian"]
[Result "*"]
[ECO "E07"]
[WhiteElo "2458"]
[BlackElo "2263"]
[Annotator "ChessBase"]
[PlyCount "34"]
[EventDate "2021.04.01"]
[EventType "swiss"]
[EventCountry "ITA"]
[SourceTitle "playchess.com"]
[Source "ChessBase"]
[SourceQuality "1"]
[TimeControl "5400+30"]

1. Nf3 {[%emt 0:00:43]} d5 {[%emt 0:00:00]} 2. g3 {[%emt 0:00:05]} Nf6 {[%emt 0:00:00]} 3. Bg2 {[%emt 0:00:13]} Nbd7 {[%emt 0:00:15]} 4. d4 {[%emt 0:00:05]} e6 {[%emt 0:00:04]} 5. O-O {[%emt 0:00:04]} Be7 {[%emt 0:00:03]} 6. c4 {[%emt 0:00:03]} O-O {[%emt 1:32:38]} 7. Qd3 {[%emt 0:00:51]} b6 {[%emt 0:00:37]} 8. cxd5 {[%emt 0:00:11]} exd5 {[%emt 0:00:06]} 9. Nc3 {[%emt 0:00:15]} Bb7 {[%emt 0:00:27]} 10. Ne5 {[%emt 0:00:14]} c5 {[%emt 0:03:06]} 11. Bf4 {[%emt 0:00:33]} Qc8 {[%emt 0:17:43]} 12. Rac1 {[%emt 0:08:41]} Rd8 {[%emt 0:00:50]} 13. Rfd1 {[%emt 0:02:44]} Nf8 {[%emt 1:12:57]} 14. Qb1 {[%emt 0:05:24]} a6 {[%emt 0:08:03]} 15. dxc5 {[%emt 0:14:33]} bxc5 {[%emt 0:00:13]} 16. Na4 {[%emt 0:00:03]} Qe6 {[%emt 0:01:16]} 17. Nd3 {[%emt 0:01:16]} N8d7 {[%emt 0:04:51]} *

[Event "1st Easter Festival-A 2021"]
[Site "Bassano del Grappa"]
[Date "2021.04.05"]
[Round "9.7"]
[White "Schreiner, Peter"]
[Black "Palozza, Christian"]
[Result "1/2-1/2"]
[ECO "E04"]
[WhiteElo "2458"]
[BlackElo "2263"]
[Annotator "ChessBase"]
[PlyCount "56"]
[EventDate "2021.04.01"]
[EventType "swiss"]
[EventCountry "ITA"]
[SourceTitle "playchess.com"]
[Source "ChessBase"]
[SourceQuality "1"]
[TimeControl "5400+30"]

1. d4 {[%emt 0:00:32]} e6 {[%emt 0:00:00]} 2. c4 {[%emt 0:00:05]} Nf6 {[%emt 0:00:00]} 3. Nf3 {[%emt 0:00:04]} d5 {[%emt 0:00:00]} 4. g3 {[%emt 0:00:05]} dxc4 {[%emt 0:00:00]} 5. Bg2 {[%emt 0:00:06]} c6 {[%emt 0:00:00]} 6. Ne5 {[%emt 0:00:20]} Bb4+ {[%emt 0:00:17]} 7. Nc3 {[%emt 0:00:11]} Nd5 {[%emt 0:00:06]} 8. Bd2 {[%emt 0:00:23]} b5 {[%emt 0:00:07]} 9. O-O {[%emt 0:01:22]} O-O {[%emt 0:00:07]} 10. a4 {[%emt 0:00:49]} a5 {[%emt 0:03:37]} 11. axb5 {[%emt 0:07:01]} Bxc3 {[%emt 0:01:50]} 12. bxc3 {[%emt 0:00:09]} cxb5 {[%emt 0:00:27]} 13. Qb1 {[%emt 0:02:52]} f6 {[%emt 0:06:30]} 14. Ng4 {[%emt 0:07:44]} Bd7 {[%emt 0:04:09]} 15. f4 {[%emt 0:04:49]} Na6 {[%emt 0:14:49]} 16. f5 {[%emt 0:12:22]} Nac7 {[%emt 0:02:19]} 17. e4 {[%emt 0:02:20]} exf5 {[%emt 0:04:23]} 18. Nh6+ gxh6 {[%emt 0:00:09]} 19. exd5 {[%emt 0:00:44]} Ra6 {[%emt 0:02:40]} 20. Bxh6 {[%emt 0:17:31]} Re8 {[%emt 0:00:26]} 21. Bf4 {[%emt 0:01:16]} Na8 {[%emt 0:07:09]} 22. Ra3 {[%emt 0:19:44]} Nb6 {[%emt 0:10:39]} 23. Qc2 {[%emt 0:00:05]} Nc8 {[%emt 0:08:32]} 24. Rfa1 {[%emt 0:05:45]} a4 {[%emt 0:00:22]} 25. R3a2 {[%emt 0:06:11]} Nd6 {[%emt 0:01:01]} 26. Bc1 {[%emt 0:01:26]} Qe7 {[%emt 0:03:56]} 27. Ba3 {[%emt 0:03:30]} Qe3+ {[%emt 0:00:11]} 28. Kh1 {[%emt 0:00:26]} Ne4 {[%emt 0:01:30]} 1/2-1/2

[Event "1st Easter Festival-A 2021"]
[Site "Bassano del Grappa"]
[Date "2021.04.05"]
[Round "9.7"]
[White "Carlo, Emanuele"]
[Black "Dardha, Daniel"]
[Result "*"]
[ECO "E04"]
[WhiteElo "2282"]
[BlackElo "2516"]
[Annotator "RC"]
[PlyCount "38"]
[EventDate "2021.04.01"]
[EventType "swiss"]
[EventCountry "ITA"]
[SourceTitle "playchess.com"]
[Source "ChessBase"]
[SourceQuality "1"]
[TimeControl "5400+30"]

1. d4 {[%emt 0:00:32]} e6 {[%emt 0:00:00]} 2. c4 {[%emt 0:00:05]} Nf6 {[%emt 0:00:00]} 3. Nf3 {[%emt 0:00:04]} d5 {[%emt 0:00:00]} 4. g3 {[%emt 0:00:05]} dxc4 {[%emt 0:00:00]} 5. Bg2 {[%emt 0:00:06]} c6 {[%emt 0:00:00]} 6. Ne5 {[%emt 0:00:20]} Bb4+ {[%emt 0:00:17]} 7. Nc3 {[%emt 0:00:11]} Nd5 {[%emt 0:00:06]} 8. Bd2 {[%emt 0:00:23]} b5 {[%emt 0:00:07]} 9. O-O {[%emt 0:01:22]} O-O {[%emt 0:00:07]} 10. a4 {[%emt 0:00:49]} a5 {[%emt 0:03:37]} 11. axb5 {[%emt 0:07:01]} Bxc3 {[%emt 0:01:50]} 12. bxc3 {[%emt 0:00:09]} cxb5 {[%emt 0:00:27]} 13. Qb1 {[%emt 0:02:52]} f6 {[%emt 0:06:30]} 14. Ng4 {[%emt 0:07:44]} Bd7 {[%emt 0:04:09]} 15. f4 {[%emt 0:04:49]} Na6 {[%emt 0:14:49]} 16. f5 {[%emt 0:12:22]} Nac7 {[%emt 0:02:19]} 17. e4 {[%emt 0:02:20]} exf5 {[%emt 0:04:23]} 18. Nh6+ gxh6 {[%emt 0:00:09]} 19. exd5 {[%emt 0:00:44]} Ra6 {[%emt 0:02:40]} *

[Event "1st Easter Festival-A 2021"]
[Site "Bassano del Grappa"]
[Date "2021.04.05"]
[Round "9.8"]
[White "Sonis, Francesco"]
[Black "Brinovec, David"]
[Result "*"]
[ECO "B31"]
[WhiteElo "2477"]
[BlackElo "2262"]
[Annotator "ChessBase"]
[PlyCount "24"]
[EventDate "2021.04.01"]
[EventType "swiss"]
[EventCountry "ITA"]
[SourceTitle "playchess.com"]
[Source "ChessBase"]
[SourceQuality "1"]
[TimeControl "5400+30"]

1. e4 {[%emt 0:00:00]} c5 {[%emt 0:07:53]} 2. Nf3 {[%emt 0:00:00]} Nc6 {[%emt 0:00:10]} 3. Nc3 {[%emt 0:00:00]} g6 {[%emt 1:23:27]} 4. Bb5 {[%emt 0:00:54]} Bg7 {[%emt 0:02:32]} 5. O-O {[%emt 0:01:12]} e5 {[%emt 0:01:19]} 6. d3 {[%emt 0:04:30]} Nge7 {[%emt 0:01:18]} 7. a3 {[%emt 0:03:32]} O-O {[%emt 1:19:01]} 8. Bc4 {[%emt 0:04:11]} d6 {[%emt 0:05:47]} 9. Bg5 {[%emt 0:04:09]} Kh8 {[%emt 0:04:57]} 10. Qd2 {[%emt 0:07:48]} Bg4 {[%emt 1:03:52]} 11. Ne1 {[%emt 0:02:50]} Be6 {[%emt 0:01:11]} 12. Rb1 {[%emt 1:06:54]} Qd7 {[%emt 0:05:49]} *

[Event "1st Easter Festival-A 2021"]
[Site "Bassano del Grappa"]
[Date "2021.04.05"]
[Round "9.10"]
[White "Maerevoet, Sim"]
[Black "Deuer, Marius"]
[Result "1-0"]
[ECO "D41"]
[WhiteElo "2381"]
[BlackElo "2231"]
[Annotator "ChessBase"]
[PlyCount "93"]
[EventDate "2021.04.01"]
[EventType "swiss"]
[EventCountry "ITA"]
[SourceTitle "playchess.com"]
[Source "ChessBase"]
[SourceQuality "1"]
[TimeControl "5400+30"]

1. c4 {[%emt 0:00:00]} c5 {[%emt 0:00:00]} 2. Nc3 {[%emt 0:00:00]} Nf6 {[%emt 0:00:00]} 3. Nf3 {[%emt 0:00:00]} e6 {[%emt 0:00:44]} 4. e3 {[%emt 0:00:34]} Nc6 {[%emt 0:00:06]} 5. d4 {[%emt 0:00:21]} d5 {[%emt 0:00:04]} 6. cxd5 {[%emt 0:00:22]} Nxd5 {[%emt 0:00:06]} 7. Bc4 {[%emt 0:00:12]} Be7 {[%emt 0:00:05]} 8. O-O {[%emt 0:00:52]} cxd4 {[%emt 0:01:24]} 9. exd4 {[%emt 0:00:14]} O-O {[%emt 0:00:10]} 10. Re1 {[%emt 0:01:59]} Bf6 {[%emt 0:00:14]} 11. Ne4 {[%emt 0:04:12]} b6 {[%emt 0:00:32]} 12. Nxf6+ {[%emt 0:20:19]} Nxf6 {[%emt 0:00:09]} 13. Bg5 {[%emt 0:06:04]} Bb7 {[%emt 0:09:36]} 14. Ne5 {[%emt 0:00:18]} Ne7 {[%emt 0:33:02]} 15. Qd3 {[%emt 0:10:54]} Nfd5 {[%emt 0:04:45]} 16. Qh3 {[%emt 0:05:12]} Qd6 {[%emt 0:06:19]} 17. Bd3 {[%emt 0:02:21]} Ng6 {[%emt 0:03:16]} 18. Nxg6 {[%emt 0:01:08]} hxg6 {[%emt 0:00:34]} 19. Re4 {[%emt 0:01:57]} f5 {[%emt 0:00:43]} 20. Rh4 {[%emt 0:04:12]} Rac8 {[%emt 0:02:09]} 21. Re1 {[%emt 0:06:21]} Kf7 {[%emt 0:05:16]} 22. Rh7 {[%emt 0:04:25]} Rg8 {[%emt 0:03:03]} 23. a3 {[%emt 0:01:15]} Qc7 {[%emt 0:05:08]} 24. Qh6 {[%emt 0:01:55]} Qc6 {[%emt 0:01:54]} 25. Bf1 {[%emt 0:01:25]} Qd6 {[%emt 0:06:03]} 26. h4 {[%emt 0:00:58]} Nf6 {[%emt 0:02:32]} 27. Bxf6 {[%emt 0:00:57]} Kxf6 {[%emt 0:00:03]} 28. Qg5+ {[%emt 0:00:29]} Kf7 {[%emt 0:00:02]} 29. h5 {[%emt 0:00:40]} gxh5 {[%emt 0:00:13]} 30. Be2 {[%emt 0:01:06]} Qe7 {[%emt 0:02:23]} 31. Bxh5+ {[%emt 0:00:51]} Kf8 {[%emt 0:00:01]} 32. Qf4 {[%emt 0:03:07]} Bd5 {[%emt 0:00:17]} 33. g4 {[%emt 0:06:03]} Qc7 {[%emt 0:06:33]} 34. Qxc7 {[%emt 0:01:13]} Rxc7 {[%emt 0:00:05]} 35. gxf5 {[%emt 0:00:07]} Rc4 {[%emt 0:00:56]} 36. fxe6 {[%emt 0:01:47]} Ke7 {[%emt 0:00:04]} 37. Bf7 {[%emt 0:00:10]} Rf8 {[%emt 0:04:05]} 38. Rxg7 {[%emt 0:00:48]} Rxd4 {[%emt 0:00:25]} 39. Bh5+ {[%emt 0:03:55]} Kf6 {[%emt 0:00:54]} 40. Rg6+ {[%emt 0:00:41]} Ke7 {[%emt 0:00:39]} 41. Re5 {[%emt 0:01:57]} Rh8 {[%emt 0:01:10]} 42. Rgg5 {[%emt 0:01:21]} Bc6 {[%emt 0:00:33]} 43. Kf1 {[%emt 0:02:31]} Rh4 {[%emt 0:01:36]} 44. Ke2 {[%emt 0:00:42]} Rf8 {[%emt 0:00:42]} 45. Rg7+ {[%emt 0:01:26]} Kf6 {[%emt 0:01:14]} 46. e7 {[%emt 0:00:30]} Kxg7 {[%emt 0:00:49]} 47. Rg5+ {[%emt 0:00:11]} 1-0